[Event "ETCC Women 2013"]
[Site "Warsaw"]
[Date "2013.11.14"]
[Round "6"]
[White "Abdulla, Khayala"]
[Black "Daulyte, Deimante"]
[Result "1/2-1/2"]
[ECO "B32"]
[WhiteElo "2255"]
[BlackElo "2336"]
[PlyCount "83"]
[EventDate "2013.??.??"]
[EventCountry "POL"]
[WhiteTeam "Azerbaijan"]
[BlackTeam "Lithuania"]
[WhiteTeamCountry "AZE"]
[BlackTeamCountry "LTU"]
[TimeControl "40/5400+30:1800+30"]

1. e4 {[%emt 0:00:00]} c5 {[%emt 0:00:00]} 2. Nf3 {[%emt 0:00:00]} Nc6 {[%emt
0:00:00]} 3. d4 {[%emt 0:00:00]} cxd4 {[%emt 0:00:00]} 4. Nxd4 {[%emt 0:00:00]}
e5 {[%emt 0:00:04]} 5. Nb5 {[%emt 0:01:30]} d6 {[%emt 0:00:15]} 6. N1c3 {[%emt
0:03:56]} a6 {[%emt 0:00:14]} 7. Na3 {[%emt 0:00:07]} Be7 {[%emt 0:00:11]} 8.
Nd5 {[%emt 0:01:36]} Nf6 {[%emt 0:03:50]} 9. Nxf6+ {[%emt 0:03:53]} Bxf6 {
[%emt 0:00:07]} 10. Nc4 {[%emt 0:04:05]} O-O {[%emt 0:02:15]} 11. Be3 {[%emt 0:
02:07]} Nd4 {[%emt 0:02:20]} 12. c3 {[%emt 0:05:05]} b5 {[%emt 0:00:48]} 13.
cxd4 {[%emt 0:02:21]} bxc4 {[%emt 0:00:14]} 14. d5 {[%emt 0:11:32]} Bg5 {[%emt
0:02:49]} 15. Qd2 {[%emt 0:05:24]} Bxe3 {[%emt 0:10:28]} 16. Qxe3 {[%emt 0:00:
05]} Rb8 {[%emt 0:02:17]} 17. Bxc4 {[%emt 0:03:02]} Rxb2 {[%emt 0:01:48]} 18.
O-O {[%emt 0:00:43]} Rb4 {[%emt 0:13:28]} 19. Rfc1 {[%emt 0:08:34]} f5 {[%emt
0:05:55]} 20. exf5 {[%emt 0:02:33]} Bxf5 {[%emt 0:06:08]} 21. Bxa6 {[%emt 0:03:
04]} Re4 {[%emt 0:10:05]} 22. Qb3 {[%emt 0:04:57]} Rf4 {[%emt 0:03:18]} 23. f3
{[%emt 0:11:29]} e4 {[%emt 0:06:31]} 24. Be2 {[%emt 0:04:43]} Qg5 {[%emt 0:03:
46]} 25. fxe4 {[%emt 0:07:03]} Rxe4 {[%emt 0:08:14]} 26. Bf3 {[%emt 0:02:04]}
Rh4 {[%emt 0:03:16]} 27. Rc4 {[%emt 0:02:33]} Rh3 {[%emt 0:04:23]} 28. Re1 {
[%emt 0:02:55]} Bd3 {[%emt 0:05:40]} 29. Qxd3 {[%emt 0:03:02]} Rhxf3 {[%emt 0:
00:20]} 30. Qe4 {[%emt 0:01:30]} Rf2 {[%emt 0:00:50]} 31. Rc8 {[%emt 0:01:04]}
Qxg2+ {[%emt 0:01:15]} 32. Qxg2 {[%emt 0:00:03]} Rxg2+ {[%emt 0:00:06]} 33.
Kxg2 {[%emt 0:00:01]} Rxc8 {[%emt 0:00:01]} 34. Re6 {[%emt 0:02:20]} Rc2+ {
[%emt 0:00:24]} 35. Kg3 {[%emt 0:00:04]} Rxa2 {[%emt 0:00:07]} 36. Rxd6 {[%emt
0:00:04]} Kf7 {[%emt 0:00:25]} 37. Rd7+ {[%emt 0:01:27]} Kf6 {[%emt 0:00:11]}
38. Rd6+ {[%emt 0:00:35]} Ke7 {[%emt 0:01:46]} 39. Re6+ {[%emt 0:00:22]} Kf7 {
[%emt 0:00:16]} 40. Rb6 {[%emt 0:00:00]} Rd2 {[%emt 0:00:00]} 41. Rb7+ {[%emt
0:02:46]} Kf6 {[%emt 0:01:36]} 42. Rb6+ {[%emt 0:00:41]} 1/2-1/2

[Event "ETCC Women 2013"]
[Site "Warsaw"]
[Date "2013.11.14"]
[Round "6"]
[White "Alexandrova, Olga"]
[Black "Danielian, Elina"]
[Result "0-1"]
[ECO "E52"]
[WhiteElo "2427"]
[BlackElo "2457"]
[PlyCount "156"]
[EventDate "2013.??.??"]
[EventCountry "POL"]
[WhiteTeam "Spain"]
[BlackTeam "Armenia"]
[WhiteTeamCountry "ESP"]
[BlackTeamCountry "ARM"]
[TimeControl "40/5400+30:1800+30"]

1. d4 {[%emt 0:00:00]} Nf6 {[%emt 0:00:00]} 2. c4 {[%emt 0:00:00]} e6 {[%emt 0:
00:00]} 3. Nc3 {[%emt 0:00:00]} Bb4 {[%emt 0:00:00]} 4. e3 {[%emt 0:00:00]} O-O
{[%emt 0:00:00]} 5. Bd3 {[%emt 0:00:00]} d5 {[%emt 0:00:01]} 6. Nf3 {[%emt 0:
00:00]} b6 {[%emt 0:00:57]} 7. O-O {[%emt 0:00:00]} Bb7 {[%emt 0:00:15]} 8.
cxd5 {[%emt 0:00:03]} exd5 {[%emt 0:00:05]} 9. Qc2 {[%emt 0:00:10]} Nbd7 {
[%emt 0:11:01]} 10. a3 {[%emt 0:00:40]} Bxc3 {[%emt 0:03:16]} 11. Qxc3 {[%emt
0:21:58]} c5 {[%emt 0:01:40]} 12. dxc5 {[%emt 0:02:05]} Rc8 {[%emt 0:09:02]}
13. b4 {[%emt 0:06:38]} bxc5 {[%emt 0:00:09]} 14. bxc5 {[%emt 0:05:04]} Nxc5 {
[%emt 0:01:09]} 15. Rb1 {[%emt 0:16:27]} d4 {[%emt 0:04:34]} 16. Nxd4 {[%emt 0:
09:34]} Nxd3 {[%emt 0:00:27]} 17. Qxd3 {[%emt 0:00:12]} Be4 {[%emt 0:00:05]}
18. Qb3 {[%emt 0:00:17]} Bxb1 {[%emt 0:00:36]} 19. Qxb1 {[%emt 0:00:07]} Rb8 {
[%emt 0:07:08]} 20. Qd3 {[%emt 0:03:29]} Qd5 {[%emt 0:02:03]} 21. Qa6 {[%emt 0:
03:39]} Rb1 {[%emt 0:10:32]} 22. Bd2 {[%emt 0:04:09]} Rxf1+ {[%emt 0:00:10]}
23. Kxf1 {[%emt 0:00:36]} Qd7 {[%emt 0:27:34]} 24. Qc6 {[%emt 0:02:01]} Qg4 {
[%emt 0:02:13]} 25. Be1 {[%emt 0:03:11]} h6 {[%emt 0:03:48]} 26. Qb7 {[%emt 0:
02:56]} Qd1 {[%emt 0:08:00]} 27. Qxa7 {[%emt 0:01:29]} Ne4 {[%emt 0:01:57]} 28.
Nf3 {[%emt 0:04:22]} Rd8 {[%emt 0:01:05]} 29. Qa6 {[%emt 0:01:48]} Qb1 {[%emt
0:01:29]} 30. Nd4 {[%emt 0:05:24]} Rb8 {[%emt 0:01:20]} 31. f3 {[%emt 0:03:42]}
Nc5 {[%emt 0:00:15]} 32. Qc4 {[%emt 0:01:56]} Nd3 {[%emt 0:01:20]} 33. Nc2 {
[%emt 0:00:14]} Qd1 {[%emt 0:01:29]} 34. Qc3 {[%emt 0:00:14]} Nb2 {[%emt 0:02:
07]} 35. Qd2 {[%emt 0:01:18]} Qb1 {[%emt 0:00:07]} 36. Nb4 {[%emt 0:01:00]} Nc4
{[%emt 0:01:00]} 37. Qc3 {[%emt 0:01:03]} Rc8 {[%emt 0:00:56]} 38. Kf2 {[%emt
0:01:20]} Nd6 {[%emt 0:00:31]} 39. Qd2 {[%emt 0:00:31]} Nf5 {[%emt 0:00:31]}
40. e4 {[%emt 0:00:00]} Nh4 {[%emt 0:00:00]} 41. Kg3 {[%emt 0:05:28]} Ng6 {
[%emt 0:02:48]} 42. Bf2 {[%emt 0:05:51]} Qa1 {[%emt 0:09:36]} 43. Bd4 {[%emt 0:
00:39]} Qxa3 {[%emt 0:00:24]} 44. Qb2 {[%emt 0:01:46]} Qa5 {[%emt 0:00:27]} 45.
Nd5 {[%emt 0:05:29]} Qd8 {[%emt 0:05:20]} 46. h3 {[%emt 0:02:18]} Qd6+ {[%emt
0:01:40]} 47. Kf2 {[%emt 0:00:49]} f6 {[%emt 0:07:56]} 48. Qb3 {[%emt 0:03:27]}
Kh8 {[%emt 0:00:15]} 49. g3 {[%emt 0:05:23]} Ne7 {[%emt 0:02:43]} 50. Be3 {
[%emt 0:03:09]} Nxd5 {[%emt 0:01:10]} 51. exd5 {[%emt 0:00:03]} Qe5 {[%emt 0:
01:37]} 52. Bf4 {[%emt 0:01:34]} Qf5 {[%emt 0:00:08]} 53. h4 {[%emt 0:00:35]}
Rc2+ {[%emt 0:01:41]} 54. Ke3 {[%emt 0:00:14]} Rc8 {[%emt 0:01:34]} 55. Qd3 {
[%emt 0:01:07]} Re8+ {[%emt 0:00:22]} 56. Kd2 {[%emt 0:00:23]} Qd7 {[%emt 0:00:
21]} 57. d6 {[%emt 0:01:03]} Qe6 {[%emt 0:00:27]} 58. Be3 {[%emt 0:00:49]} Qa2+
{[%emt 0:00:33]} 59. Kd1 {[%emt 0:00:20]} Rb8 {[%emt 0:00:30]} 60. Bd2 {[%emt
0:01:00]} Qa4+ {[%emt 0:00:48]} 61. Ke2 {[%emt 0:00:12]} Qd7 {[%emt 0:00:32]}
62. Bf4 {[%emt 0:00:52]} Re8+ {[%emt 0:00:27]} 63. Kd2 {[%emt 0:00:38]} Ra8 {
[%emt 0:00:18]} 64. g4 {[%emt 0:00:22]} Ra2+ {[%emt 0:00:14]} 65. Ke1 {[%emt 0:
00:29]} g5 {[%emt 0:00:48]} 66. hxg5 {[%emt 0:00:24]} hxg5 {[%emt 0:00:04]} 67.
Bd2 {[%emt 0:00:28]} Kg7 {[%emt 0:00:46]} 68. Kf2 {[%emt 0:00:41]} Qa7+ {[%emt
0:00:15]} 69. Ke2 {[%emt 0:00:30]} Ra3 {[%emt 0:00:26]} 70. Qe4 {[%emt 0:00:39]
} Qa6+ {[%emt 0:00:20]} 71. Kf2 {[%emt 0:00:21]} Qxd6 {[%emt 0:00:14]} 72. Qb7+
{[%emt 0:00:43]} Kh6 {[%emt 0:00:23]} 73. Qb2 {[%emt 0:00:21]} Qh2+ {[%emt 0:
00:27]} 74. Ke1 {[%emt 0:00:03]} Qh1+ {[%emt 0:00:23]} 75. Ke2 {[%emt 0:00:06]}
Qxf3+ {[%emt 0:00:05]} 76. Ke1 {[%emt 0:00:03]} Qh1+ {[%emt 0:01:35]} 77. Ke2 {
[%emt 0:00:05]} Qg2+ {[%emt 0:00:04]} 78. Ke1 {[%emt 0:00:14]} Ra1+ {[%emt 0:
00:44]} 0-1

[Event "ETCC Women 2013"]
[Site "Warsaw"]
[Date "2013.11.14"]
[Round "6"]
[White "Barbier, Wiebke"]
[Black "Makropoulou, Marina"]
[Result "1-0"]
[ECO "C44"]
[WhiteElo "1945"]
[BlackElo "2234"]
[PlyCount "99"]
[EventDate "2013.??.??"]
[EventCountry "POL"]
[WhiteTeam "Belgium"]
[BlackTeam "Greece"]
[WhiteTeamCountry "BEL"]
[BlackTeamCountry "GRE"]
[TimeControl "40/5400+30:1800+30"]

1. e4 {[%emt 0:00:00]} e5 {[%emt 0:00:00]} 2. Nf3 {[%emt 0:00:00]} Nc6 {[%emt
0:00:00]} 3. d3 {[%emt 0:00:00]} Nf6 {[%emt 0:00:00]} 4. Be2 {[%emt 0:00:00]}
d5 {[%emt 0:00:34]} 5. Nbd2 {[%emt 0:00:00]} Be7 {[%emt 0:00:21]} 6. O-O {
[%emt 0:00:00]} O-O {[%emt 0:01:20]} 7. c3 {[%emt 0:00:11]} a5 {[%emt 0:00:05]}
8. b3 {[%emt 0:00:50]} Re8 {[%emt 0:04:29]} 9. Bb2 {[%emt 0:01:06]} Bf8 {[%emt
0:03:35]} 10. a3 {[%emt 0:01:59]} b6 {[%emt 0:08:08]} 11. Re1 {[%emt 0:03:44]}
h6 {[%emt 0:03:19]} 12. Bf1 {[%emt 0:02:24]} Bb7 {[%emt 0:11:13]} 13. Qc2 {
[%emt 0:03:23]} Qd7 {[%emt 0:05:22]} 14. h3 {[%emt 0:08:09]} Rad8 {[%emt 0:03:
31]} 15. b4 {[%emt 0:06:01]} dxe4 {[%emt 0:15:02]} 16. Nxe4 {[%emt 0:04:01]}
Nh5 {[%emt 0:07:33]} 17. b5 {[%emt 0:06:51]} Nb8 {[%emt 0:00:46]} 18. c4 {
[%emt 0:00:35]} f6 {[%emt 0:04:05]} 19. d4 {[%emt 0:16:30]} f5 {[%emt 0:04:33]}
20. Ned2 {[%emt 0:00:49]} e4 {[%emt 0:00:31]} 21. Ne5 {[%emt 0:00:40]} Rxe5 {
[%emt 0:00:24]} 22. dxe5 {[%emt 0:02:11]} Qxd2 {[%emt 0:00:06]} 23. Qxd2 {
[%emt 0:02:06]} Rxd2 {[%emt 0:00:02]} 24. Bc1 {[%emt 0:00:17]} Rc2 {[%emt 0:05:
12]} 25. g4 {[%emt 0:06:08]} Bc5 {[%emt 0:00:39]} 26. Be3 {[%emt 0:01:59]} fxg4
{[%emt 0:02:40]} 27. Rad1 {[%emt 0:04:30]} g3 {[%emt 0:11:17]} 28. Rd8+ {[%emt
0:02:47]} Kf7 {[%emt 0:00:08]} 29. fxg3 {[%emt 0:01:58]} Nc6 {[%emt 0:05:22]}
30. Rd7+ {[%emt 0:00:53]} Ne7 {[%emt 0:00:55]} 31. Bxc5 {[%emt 0:03:08]} bxc5 {
[%emt 0:00:08]} 32. Rxc7 {[%emt 0:00:44]} Bc8 {[%emt 0:00:35]} 33. Re3 {[%emt
0:06:14]} Ke8 {[%emt 0:02:08]} 34. Rxc5 {[%emt 0:01:43]} Kd8 {[%emt 0:01:05]}
35. Be2 {[%emt 0:03:10]} Nxg3 {[%emt 0:00:23]} 36. Rxg3 {[%emt 0:00:55]} Rxe2 {
[%emt 0:00:02]} 37. Rxg7 {[%emt 0:08:51]} Bxh3 {[%emt 0:00:06]} 38. b6 {[%emt
0:01:37]} Bd7 {[%emt 0:02:34]} 39. Rxa5 {[%emt 0:00:39]} Rb2 {[%emt 0:00:31]}
40. Ra8+ {[%emt 0:00:00]} Bc8 {[%emt 0:00:00]} 41. c5 {[%emt 0:02:21]} e3 {
[%emt 0:00:10]} 42. Kf1 {[%emt 0:00:57]} h5 {[%emt 0:07:38]} 43. Rxe7 {[%emt 0:
04:06]} Kxe7 {[%emt 0:00:01]} 44. Rxc8 {[%emt 0:00:09]} Ke6 {[%emt 0:00:55]}
45. c6 {[%emt 0:03:36]} Rxb6 {[%emt 0:05:23]} 46. Re8+ {[%emt 0:00:15]} Kd5 {
[%emt 0:00:43]} 47. c7 {[%emt 0:00:07]} Rb1+ {[%emt 0:02:39]} 48. Ke2 {[%emt 0:
00:09]} Ke4 {[%emt 0:00:46]} 49. c8=Q {[%emt 0:00:22]} Rb2+ {[%emt 0:00:16]}
50. Kd1 {[%emt 0:00:03]} 1-0

[Event "ETCC Women 2013"]
[Site "Warsaw"]
[Date "2013.11.14"]
[Round "6"]
[White "Bulmaga, Irina"]
[Black "Hoang, Thanh Trang"]
[Result "0-1"]
[ECO "C11"]
[WhiteElo "2399"]
[BlackElo "2511"]
[PlyCount "72"]
[EventDate "2013.??.??"]
[EventCountry "POL"]
[WhiteTeam "Romania"]
[BlackTeam "Hungary"]
[WhiteTeamCountry "ROU"]
[BlackTeamCountry "HUN"]
[TimeControl "40/5400+30:1800+30"]

1. e4 {[%emt 0:00:00]} e6 {[%emt 0:00:00]} 2. d4 {[%emt 0:00:00]} d5 {[%emt 0:
00:00]} 3. Nc3 {[%emt 0:00:00]} Nf6 {[%emt 0:00:39]} 4. e5 {[%emt 0:00:00]}
Nfd7 {[%emt 0:00:09]} 5. f4 {[%emt 0:00:16]} c5 {[%emt 0:00:24]} 6. Nf3 {[%emt
0:00:14]} Nc6 {[%emt 0:00:26]} 7. Be3 {[%emt 0:00:10]} cxd4 {[%emt 0:01:25]} 8.
Nxd4 {[%emt 0:00:16]} Bc5 {[%emt 0:00:19]} 9. Qd2 {[%emt 0:03:11]} O-O {[%emt
0:00:53]} 10. O-O-O {[%emt 0:00:41]} a6 {[%emt 0:00:34]} 11. Kb1 {[%emt 0:05:
26]} Nxd4 {[%emt 0:03:25]} 12. Bxd4 {[%emt 0:00:15]} b5 {[%emt 0:00:24]} 13. h4
{[%emt 0:28:17]} b4 {[%emt 0:02:23]} 14. Na4 {[%emt 0:06:05]} Bxd4 {[%emt 0:03:
37]} 15. Qxd4 {[%emt 0:00:07]} Qa5 {[%emt 0:01:09]} 16. b3 {[%emt 0:00:40]} Bb7
{[%emt 0:01:01]} 17. Rh3 {[%emt 0:10:52]} Bc6 {[%emt 0:03:22]} 18. Nb2 {[%emt
0:12:17]} Qc5 {[%emt 0:09:36]} 19. a4 {[%emt 0:03:09]} a5 {[%emt 0:05:14]} 20.
Qd2 {[%emt 0:04:28]} Rac8 {[%emt 0:09:45]} 21. Rg3 {[%emt 0:01:54]} f6 {[%emt
0:07:58]} 22. Bd3 {[%emt 0:03:31]} Qe7 {[%emt 0:06:51]} 23. Qe3 {[%emt 0:07:43]
} Nc5 {[%emt 0:05:09]} 24. exf6 {[%emt 0:04:56]} Rxf6 {[%emt 0:00:11]} 25. Rg5
{[%emt 0:00:47]} h6 {[%emt 0:02:15]} 26. Re5 {[%emt 0:02:51]} Nd7 {[%emt 0:02:
21]} 27. Qg3 {[%emt 0:00:49]} Nxe5 {[%emt 0:06:13]} 28. fxe5 {[%emt 0:00:06]}
Qc7 {[%emt 0:00:23]} 29. Re1 {[%emt 0:01:53]} Be8 {[%emt 0:03:11]} 30. Qh3 {
[%emt 0:00:31]} Rf2 {[%emt 0:02:06]} 31. Qxe6+ {[%emt 0:01:32]} Bf7 {[%emt 0:
00:09]} 32. Qg4 {[%emt 0:00:22]} h5 {[%emt 0:05:05]} 33. Qg3 {[%emt 0:02:29]}
Rxc2 {[%emt 0:01:30]} 34. Bxc2 {[%emt 0:00:38]} Qxc2+ {[%emt 0:00:09]} 35. Ka1
{[%emt 0:00:21]} Rc3 {[%emt 0:00:25]} 36. Re3 {[%emt 0:00:40]} Qc1+ {[%emt 0:
00:19]} 0-1

[Event "ETCC Women 2013"]
[Site "Warsaw"]
[Date "2013.11.14"]
[Round "6"]
[White "Ciuksyte, Dagne"]
[Black "Seps, Monika"]
[Result "0-1"]
[ECO "B32"]
[WhiteElo "2355"]
[BlackElo "2260"]
[PlyCount "82"]
[EventDate "2013.??.??"]
[EventCountry "POL"]
[WhiteTeam "England"]
[BlackTeam "Switzerland"]
[WhiteTeamCountry "ENG"]
[BlackTeamCountry "SUI"]
[TimeControl "40/5400+30:1800+30"]

1. e4 {[%emt 0:00:00]} c5 {[%emt 0:00:00]} 2. Nf3 {[%emt 0:00:00]} Nc6 {[%emt
0:00:00]} 3. d4 {[%emt 0:00:00]} cxd4 {[%emt 0:00:00]} 4. Nxd4 {[%emt 0:00:00]}
e5 {[%emt 0:00:00]} 5. Nb5 {[%emt 0:00:12]} d6 {[%emt 0:00:05]} 6. c4 {[%emt 0:
00:57]} Be7 {[%emt 0:01:19]} 7. N1c3 {[%emt 0:03:16]} a6 {[%emt 0:01:35]} 8.
Na3 {[%emt 0:00:06]} f5 {[%emt 0:01:00]} 9. exf5 {[%emt 0:01:09]} Bxf5 {[%emt
0:00:04]} 10. Bd3 {[%emt 0:00:06]} Be6 {[%emt 0:00:05]} 11. O-O {[%emt 0:00:20]
} Nf6 {[%emt 0:00:05]} 12. Nc2 {[%emt 0:02:42]} O-O {[%emt 0:05:18]} 13. Bg5 {
[%emt 0:07:34]} Qd7 {[%emt 0:01:08]} 14. Qe2 {[%emt 0:06:04]} Rae8 {[%emt 0:05:
18]} 15. Rad1 {[%emt 0:06:18]} Bg4 {[%emt 0:11:43]} 16. f3 {[%emt 0:00:58]} Be6
{[%emt 0:00:32]} 17. Ne4 {[%emt 0:26:24]} Nxe4 {[%emt 0:09:44]} 18. Bxe7 {
[%emt 0:08:23]} Nc3 {[%emt 0:04:56]} 19. bxc3 {[%emt 0:00:32]} Nxe7 {[%emt 0:
05:22]} 20. Be4 {[%emt 0:07:03]} Qc7 {[%emt 0:03:52]} 21. Ne3 {[%emt 0:01:00]}
Qc5 {[%emt 0:07:35]} 22. Kh1 {[%emt 0:00:37]} b5 {[%emt 0:01:04]} 23. cxb5 {
[%emt 0:03:55]} d5 {[%emt 0:09:07]} 24. Bd3 {[%emt 0:00:18]} axb5 {[%emt 0:01:
38]} 25. Bxb5 {[%emt 0:00:06]} Rb8 {[%emt 0:00:58]} 26. c4 {[%emt 0:04:47]} d4
{[%emt 0:01:50]} 27. Nc2 {[%emt 0:00:05]} Rxb5 {[%emt 0:05:01]} 28. cxb5 {
[%emt 0:00:59]} Bc4 {[%emt 0:00:00]} 29. Qe4 {[%emt 0:04:07]} Bxf1 {[%emt 0:02:
34]} 30. Rxf1 {[%emt 0:00:04]} Qxb5 {[%emt 0:03:04]} 31. Rd1 {[%emt 0:00:37]}
Ng6 {[%emt 0:09:30]} 32. g3 {[%emt 0:03:42]} Qa4 {[%emt 0:02:29]} 33. Qd5+ {
[%emt 0:00:52]} Kh8 {[%emt 0:00:01]} 34. Rd2 {[%emt 0:00:34]} Rc8 {[%emt 0:04:
13]} 35. Ne1 {[%emt 0:02:28]} Qb4 {[%emt 0:01:06]} 36. Rd1 {[%emt 0:00:42]} Qb2
{[%emt 0:01:33]} 37. f4 {[%emt 0:03:43]} Qe2 {[%emt 0:01:35]} 38. Qf3 {[%emt 0:
01:09]} Qxa2 {[%emt 0:01:59]} 39. fxe5 {[%emt 0:07:03]} Rf8 {[%emt 0:01:08]}
40. Qg2 {[%emt 0:00:00]} Rf2 {[%emt 0:00:00]} 41. Rxd4 {[%emt 0:21:15]} h6 {
[%emt 0:05:30]} 0-1

[Event "ETCC Women 2013"]
[Site "Warsaw"]
[Date "2013.11.14"]
[Round "6"]
[White "Cmilyte, Viktorija"]
[Black "Mamedjarova, Zeinab"]
[Result "1-0"]
[ECO "D31"]
[WhiteElo "2506"]
[BlackElo "2236"]
[PlyCount "69"]
[EventDate "2013.??.??"]
[EventCountry "POL"]
[WhiteTeam "Lithuania"]
[BlackTeam "Azerbaijan"]
[WhiteTeamCountry "LTU"]
[BlackTeamCountry "AZE"]
[TimeControl "40/5400+30:1800+30"]

1. d4 {[%emt 0:00:00]} d5 {[%emt 0:00:00]} 2. c4 {[%emt 0:00:00]} e6 {[%emt 0:
00:00]} 3. Nc3 {[%emt 0:00:02]} c6 {[%emt 0:00:00]} 4. Nf3 {[%emt 0:00:24]} f5
{[%emt 0:00:00]} 5. Bf4 {[%emt 0:00:43]} Nf6 {[%emt 0:00:05]} 6. e3 {[%emt 0:
00:31]} Be7 {[%emt 0:00:12]} 7. Bd3 {[%emt 0:00:34]} O-O {[%emt 0:00:08]} 8.
Qc2 {[%emt 0:00:19]} Bd7 {[%emt 0:03:56]} 9. h3 {[%emt 0:13:49]} Na6 {[%emt 0:
11:53]} 10. a3 {[%emt 0:01:19]} Nc7 {[%emt 0:04:19]} 11. g4 {[%emt 0:06:17]}
dxc4 {[%emt 0:06:47]} 12. Bxc4 {[%emt 0:00:17]} Ncd5 {[%emt 0:00:43]} 13. Be5 {
[%emt 0:01:55]} b5 {[%emt 0:02:47]} 14. Bd3 {[%emt 0:10:23]} b4 {[%emt 0:24:19]
} 15. Nxd5 {[%emt 0:00:24]} Nxd5 {[%emt 0:00:27]} 16. gxf5 {[%emt 0:02:13]}
exf5 {[%emt 0:05:02]} 17. Rg1 {[%emt 0:05:10]} Rf7 {[%emt 0:08:54]} 18. e4 {
[%emt 0:04:27]} fxe4 {[%emt 0:13:30]} 19. Bxe4 {[%emt 0:00:06]} bxa3 {[%emt 0:
03:35]} 20. Bxh7+ {[%emt 0:08:06]} Kf8 {[%emt 0:04:45]} 21. Rxg7 {[%emt 0:10:
30]} Bb4+ {[%emt 0:02:56]} 22. Kf1 {[%emt 0:13:09]} Bxh3+ {[%emt 0:00:21]} 23.
Kg1 {[%emt 0:00:09]} Rxg7+ {[%emt 0:03:09]} 24. Bxg7+ {[%emt 0:00:05]} Kxg7 {
[%emt 0:00:18]} 25. Qg6+ {[%emt 0:00:05]} Kf8 {[%emt 0:01:20]} 26. Qh6+ {[%emt
0:06:05]} Ke7 {[%emt 0:00:34]} 27. Ne5 {[%emt 0:01:23]} Qe8 {[%emt 0:02:57]}
28. bxa3 {[%emt 0:09:24]} Bc3 {[%emt 0:00:28]} 29. Rb1 {[%emt 0:00:51]} Qc8 {
[%emt 0:00:17]} 30. Nxc6+ {[%emt 0:01:33]} Kd7 {[%emt 0:00:18]} 31. Ne5+ {
[%emt 0:00:58]} Ke7 {[%emt 0:00:57]} 32. Rb7+ {[%emt 0:02:36]} Nc7 {[%emt 0:00:
03]} 33. Qg7+ {[%emt 0:01:19]} Kd6 {[%emt 0:00:30]} 34. Nc4+ {[%emt 0:00:39]}
Kd5 {[%emt 0:00:52]} 35. Qe5+ {[%emt 0:00:24]} 1-0

[Event "ETCC Women 2013"]
[Site "Warsaw"]
[Date "2013.11.14"]
[Round "6"]
[White "Cosma, Elena-Luminita"]
[Black "Gara, Anita"]
[Result "1-0"]
[ECO "D34"]
[WhiteElo "2326"]
[BlackElo "2311"]
[PlyCount "95"]
[EventDate "2013.??.??"]
[EventCountry "POL"]
[WhiteTeam "Romania"]
[BlackTeam "Hungary"]
[WhiteTeamCountry "ROU"]
[BlackTeamCountry "HUN"]
[TimeControl "40/5400+30:1800+30"]

1. d4 {[%emt 0:00:00]} d5 {[%emt 0:00:00]} 2. c4 {[%emt 0:00:00]} e6 {[%emt 0:
00:00]} 3. Nf3 {[%emt 0:00:00]} c5 {[%emt 0:00:00]} 4. cxd5 {[%emt 0:00:09]}
exd5 {[%emt 0:00:00]} 5. g3 {[%emt 0:00:13]} Nc6 {[%emt 0:00:02]} 6. Bg2 {
[%emt 0:00:43]} Nf6 {[%emt 0:00:04]} 7. O-O {[%emt 0:00:00]} Be7 {[%emt 0:00:
05]} 8. Nc3 {[%emt 0:00:06]} O-O {[%emt 0:00:05]} 9. dxc5 {[%emt 0:00:21]} Bxc5
{[%emt 0:00:22]} 10. Na4 {[%emt 0:00:10]} Be7 {[%emt 0:01:37]} 11. Be3 {[%emt
0:00:16]} Re8 {[%emt 0:01:23]} 12. Rc1 {[%emt 0:04:43]} h6 {[%emt 0:17:28]} 13.
Nd4 {[%emt 0:17:24]} Qa5 {[%emt 0:16:00]} 14. Nc3 {[%emt 0:10:23]} Be6 {[%emt
0:11:42]} 15. Qa4 {[%emt 0:16:24]} Qxa4 {[%emt 0:05:17]} 16. Nxa4 {[%emt 0:00:
04]} Nxd4 {[%emt 0:04:15]} 17. Bxd4 {[%emt 0:00:09]} Rac8 {[%emt 0:01:05]} 18.
Rxc8 {[%emt 0:05:12]} Rxc8 {[%emt 0:00:14]} 19. Nc3 {[%emt 0:00:20]} b6 {[%emt
0:04:10]} 20. Rd1 {[%emt 0:03:38]} Ne4 {[%emt 0:08:14]} 21. Nxe4 {[%emt 0:11:
28]} dxe4 {[%emt 0:00:05]} 22. Bxe4 {[%emt 0:00:16]} Bxa2 {[%emt 0:08:42]} 23.
Ra1 {[%emt 0:00:19]} Be6 {[%emt 0:00:43]} 24. Rxa7 {[%emt 0:00:35]} Bc5 {[%emt
0:02:12]} 25. Bxc5 {[%emt 0:00:42]} bxc5 {[%emt 0:00:01]} 26. f4 {[%emt 0:02:
45]} f5 {[%emt 0:06:28]} 27. Bf3 {[%emt 0:01:21]} Rb8 {[%emt 0:01:53]} 28. Rb7
{[%emt 0:09:27]} Rxb7 {[%emt 0:00:13]} 29. Bxb7 {[%emt 0:00:04]} Kf7 {[%emt 0:
00:24]} 30. Kf2 {[%emt 0:00:32]} Bc4 {[%emt 0:01:29]} 31. Kf3 {[%emt 0:01:26]}
Kf6 {[%emt 0:02:55]} 32. e4 {[%emt 0:04:11]} fxe4+ {[%emt 0:00:05]} 33. Kxe4 {
[%emt 0:00:52]} Bf1 {[%emt 0:01:15]} 34. Bc8 {[%emt 0:00:18]} Bg2+ {[%emt 0:01:
07]} 35. Kd3 {[%emt 0:02:40]} Bd5 {[%emt 0:00:41]} 36. Ke3 {[%emt 0:00:56]} Bg2
{[%emt 0:01:18]} 37. g4 {[%emt 0:01:08]} Bd5 {[%emt 0:03:18]} 38. h4 {[%emt 0:
00:47]} Bg2 {[%emt 0:01:01]} 39. g5+ {[%emt 0:01:57]} hxg5 {[%emt 0:01:34]} 40.
hxg5+ {[%emt 0:00:00]} Kg6 {[%emt 0:00:00]} 41. Be6 {[%emt 0:02:38]} Kh5 {
[%emt 0:06:36]} 42. Kf2 {[%emt 0:04:16]} Be4 {[%emt 0:02:02]} 43. Kg3 {[%emt 0:
00:57]} Kg6 {[%emt 0:00:23]} 44. Kg4 {[%emt 0:00:20]} Bc2 {[%emt 0:03:03]} 45.
f5+ {[%emt 0:00:08]} Kh7 {[%emt 0:00:03]} 46. Kf4 {[%emt 0:00:21]} Kh8 {[%emt
0:02:33]} 47. Ke5 {[%emt 0:00:20]} Bd3 {[%emt 0:00:08]} 48. b3 {[%emt 0:00:16]}
1-0

[Event "ETCC Women 2013"]
[Site "Warsaw"]
[Date "2013.11.14"]
[Round "6"]
[White "De Seroux, Camille"]
[Black "Bhatia, Kanwal K"]
[Result "0-1"]
[ECO "C44"]
[WhiteElo "2066"]
[BlackElo "2039"]
[PlyCount "60"]
[EventDate "2013.??.??"]
[EventCountry "POL"]
[WhiteTeam "Switzerland"]
[BlackTeam "England"]
[WhiteTeamCountry "SUI"]
[BlackTeamCountry "ENG"]
[TimeControl "40/5400+30:1800+30"]

1. e4 {[%emt 0:00:00]} e5 {[%emt 0:00:00]} 2. Nf3 {[%emt 0:00:00]} Nc6 {[%emt
0:00:00]} 3. d4 {[%emt 0:00:00]} exd4 {[%emt 0:00:00]} 4. Nxd4 {[%emt 0:00:00]}
Qf6 {[%emt 0:00:19]} 5. Nb5 {[%emt 0:11:16]} Bc5 {[%emt 0:00:50]} 6. Qf3 {
[%emt 0:07:32]} Qxf3 {[%emt 0:03:40]} 7. gxf3 {[%emt 0:00:10]} Bb6 {[%emt 0:00:
39]} 8. Be3 {[%emt 0:04:54]} Kd8 {[%emt 0:10:54]} 9. N1c3 {[%emt 0:05:15]} Nge7
{[%emt 0:04:13]} 10. Rg1 {[%emt 0:02:53]} Bxe3 {[%emt 0:03:56]} 11. fxe3 {
[%emt 0:00:20]} g6 {[%emt 0:00:30]} 12. Rd1 {[%emt 0:03:15]} d6 {[%emt 0:04:58]
} 13. f4 {[%emt 0:03:00]} a6 {[%emt 0:04:42]} 14. Nd4 {[%emt 0:01:14]} Nxd4 {
[%emt 0:05:34]} 15. Rxd4 {[%emt 0:08:13]} Bd7 {[%emt 0:08:39]} 16. Rd2 {[%emt
0:07:43]} Kc8 {[%emt 0:08:09]} 17. Kf2 {[%emt 0:03:48]} Re8 {[%emt 0:06:05]}
18. Bg2 {[%emt 0:03:37]} Bc6 {[%emt 0:06:48]} 19. Bf3 {[%emt 0:11:52]} Kb8 {
[%emt 0:03:13]} 20. Ne2 {[%emt 0:03:02]} Ng8 {[%emt 0:01:28]} 21. Rd4 {[%emt 0:
13:05]} Nf6 {[%emt 0:02:38]} 22. Nc3 {[%emt 0:00:40]} Ka7 {[%emt 0:09:32]} 23.
Nd5 {[%emt 0:01:26]} Bxd5 {[%emt 0:00:52]} 24. exd5 {[%emt 0:00:11]} Re7 {
[%emt 0:01:32]} 25. e4 {[%emt 0:05:24]} Rae8 {[%emt 0:00:44]} 26. Re1 {[%emt 0:
00:16]} b5 {[%emt 0:03:11]} 27. Bg2 {[%emt 0:01:37]} Ng4+ {[%emt 0:03:42]} 28.
Kg3 {[%emt 0:00:10]} f5 {[%emt 0:00:25]} 29. Rc1 {[%emt 0:02:38]} Ne3 {[%emt 0:
02:44]} 30. exf5 {[%emt 0:00:53]} Nxf5+ {[%emt 0:00:06]} 0-1